Cogmind - Beta 15 @@@ ROGUE MODE // 2025.07.28 @ 14:59:08 Player: P9H Result: Destroyed by VR-X8E(z) with Makeshift Hammer Performance ------------- Evolutions (1) 500 Regions Visited (4) 800 Robots Destroyed (32) 160 Value Destroyed (726) 726 Prototype IDs (4) 80 Alien Tech Used (0) 0 Bonus (0) 0 TOTAL SCORE: 2266 Bonus ------- None Cogmind --------- Core Integrity 0/400 Matter 33/300 Energy 100/100 System Corruption 12% Temperature Cool (27) Movement Treading (240) Ox1 Location -7/Zion Parts ------- > --- POWER (1) -------- (None) > --- PROPULSION (2) --- Light Treads > --- UTILITY (3) ------ Large Storage Unit Experimental Armor Integrity Analyzer > --- WEAPON (3) ------- Heavy Flail Makeshift Axe Makeshift Sword > --- INVENTORY (15) --- Light Ion Engine Armored Treads Medium Treads Wheel Scrap Suit Large Storage Unit Small Matter Pod (50) Advanced Targeting Computer Experimental Armor Integrity Analyzer Makeshift Light Armor Plating Riot Gun Rocket Launcher Improved Grenade Launcher Missile Launcher Peak State ------------ > --- POWER ------------ Light Ion Engine > --- PROPULSION ------- Wheel Wheel > --- UTILITY ---------- Large Storage Unit Experimental Signal Interpreter Experimental Armor Integrity Analyzer > --- WEAPON ----------- Improved Grenade Launcher Precision Grenade Launcher Precision Grenade Launcher > --- INVENTORY -------- Light Ion Engine Light Ion Engine Light Treads Wheel Scrap Suit Large Storage Unit Small Matter Pod Advanced Targeting Computer Experimental Armor Integrity Analyzer Makeshift Light Armor Plating Riot Gun Rocket Launcher Missile Launcher Heavy Flail [Rating: 39] Favorites ----------- Power Light Ion Engine Engine Light Ion Engine Power Core Light Nuclear Core Propulsion Wheel Treads Light Treads Wheel Wheel Utility Large Storage Unit Device Heat Sink Storage Large Storage Unit Processor Experimental Signal Interpreter Protection Makeshift Light Armor Plating Weapon Light Assault Rifle Energy Gun EM Pulse Gun Ballistic Gun Light Assault Rifle Launcher Precision Grenade Launcher Impact Weapon Hammer Slashing Weapon Makeshift Sword Build | -11 -10 -9 -9 -7 ------- Run | Yrd Mat Mat Min Zio Slots Evolved 2 | . . 2 . . Power . | . . . . . Propulsion . | . . . . . Utility 1 | . . 1 . . Weapon 1 | . . 1 . . Parts Attached 36 | 4 8 9 1 14 Power 5 | 1 2 1 . 1 Engine 4 | 1 1 1 . 1 Core 1 | . 1 . . . Reactor . | . . . . . Propulsion 5 | 1 2 1 . 1 Treads 1 | . . . . 1 Leg . | . . . . . Wheel 4 | 1 2 1 . . Hover . | . . . . . Flight . | . . . . . Utility 10 | 1 2 3 . 4 Device 1 | . 1 . . . Storage 4 | 1 1 2 . . Processor 4 | . . 1 . 3 Hackware . | . . . . . Protection 1 | . . . . 1 Artifact . | . . . . . Weapon 16 | 1 2 4 1 8 Energy Gun 4 | . 1 2 . 1 Energy Cannon . | . . . . . Ballistic Gun 4 | 1 1 2 . . Ballistic Cannon . | . . . . . Launcher 4 | . . . . 4 Special Weapon . | . . . . . Impact Weapon 2 | . . . 1 1 Slashing Weapon 2 | . . . . 2 Piercing Weapon . | . . . . . Special Melee Weapon . | . . . . . Unidentified Prototypes 4 | . . . . 4 Parts Lost 15 | . 1 7 . 7 Power 3 | . . 1 . 2 Propulsion 4 | . 1 1 . 2 Utility 2 | . . 1 . 1 Weapon 6 | . . 4 . 2 Highest Loss Streak 4 | . 1 4 . 3 To Critical Strikes 2 | . . 2 . . Average Backups 11 | 3 7 11 13 13 Power 2 | . 1 2 4 2 Propulsion 3 | 1 4 5 7 3 Utility 2 | . . 1 2 4 Weapon 2 | 1 2 1 . 3 Tool/Special . | . . . . . Unused Backups 22 | . 2 . . 20 Power 3 | . . . . 3 Propulsion 8 | . . . . 8 Utility 5 | . . . . 5 Weapon 6 | . 2 . . 4 Tool/Special . | . . . . . Average Slot Usage (%) 91 | . 77 91 100 96 Engine 8 | . 8 1 11 10 Core 3 | . 5 8 . . Treads 1 | . . . . 2 Wheel 18 | . 19 21 22 17 Device 7 | . 5 11 11 7 Storage 14 | . 14 12 22 15 Processor 5 | . . 5 . 7 Protection 1 | . . . . 3 Energy Gun 7 | . 8 9 11 4 Ballistic Gun 10 | . 14 20 11 3 Launcher 9 | . . . . 17 Impact Weapon 2 | . . . 11 4 Slashing Weapon 1 | . . . . 1 Peak Build Rating 39 | 4 10 13 12 39 Average Rating 17 | 2 6 11 11 25 On Entrance 7 | . 4 10 10 12 Naked Turns . | . . . . . Heaviest Build 62 | 11 19 48 50 62 Greatest Support 20 | 16 20 20 20 20 Greatest Overweight (x) 4 | . 4 2 2 4 Average Overweight (x) 1 | . . 1 2 2 Largest Inventory Capacity 15 | 8 10 15 15 15 Average Capacity 13 | 7 8 14 15 15 Most Carried 15 | 5 10 15 15 15 Average Carried 12 | 3 7 11 14 14 Final Capacity 15 | 8 10 15 15 15 Final Carried 15 | 5 10 14 15 15 Class Distribution -------------------- 31% | Mutant 18% | Scavenger-Mutant 16% | Gunner 16% | Scavenger-Tank 9% | Skirmisher 5% | Scavenger-Gunner Dominant Class ---------------- Mutant | -10/Materials Skirmisher | -9/Materials Scavenger-Mutant | -9/Mines Scavenger-Tank | -7/Zion Resources | -11 -10 -9 -9 -7 ----------- Run | Yrd Mat Mat Min Zio Matter Collected 573 | 219 128 115 . 111 Remotely . | . . . . . Salvage Created 846 | . 404 276 . 166 Parts 70 | . 31 29 . 10 Haulers Intercepted . | . . . . . Recyclers Shooed . | . . . . . Parts Field Recycled . | . . . . . Retrieved Matter . | . . . . . Parts Self-Destructed 3 | . . . . 3 Prevented . | . . . . . Kills | -11 -10 -9 -9 -7 ------- Run | Yrd Mat Mat Min Zio Combat Hostiles Destroyed 22 | . 8 9 . 5 Guns 17 | . 8 9 . . AOE 5 | . . . . 5 Classes Destroyed 9 | . 5 2 . 2 Worker 3 | . 2 1 . . Builder 1 | . 1 . . . Tunneler 1 | . 1 . . . Watcher 1 | . . 1 . . Swarmer 8 | . 2 6 . . Grunt 8 | . 6 2 . . Brawler 1 | . . 1 . . Zionite 4 | . . . . 4 Mutant 4 | . . . . 4 Best Kill Streak 5 | . 5 4 . 5 Combat Bots Only 5 | . 2 3 . 5 Max Kills in Single Turn 2 | . 2 2 . 2 Gunslinging . | . . . . . Exploded 2 | . . . . 2 Melee . | . . . . . Uniques/NPCs Destroyed 1 | . . . . 1 Imprinter (-7/Zion) Combat | -11 -10 -9 -9 -7 -------- Run | Yrd Mat Mat Min Zio Hostile Shots Fired 179 | . 48 54 . 77 Missed 68 | . 20 13 . 35 Hits 111 | . 28 41 . 42 Melee 8 | . . 3 . 5 Projectile 103 | . 28 38 . 37 Critical Strikes 4 | . . 2 . 2 Damage Taken 1661 | . 368 440 . 853 Core 525 | . 108 60 . 357 Absorbed by Shields . | . . . . . Core Remaining (%) 78 | 100 56 . . . Volleys Fired 71 | . 38 27 . 6 Largest 3 | . 2 3 . 3 Hottest 108 | . 60 80 . 108 Shots Fired 150 | . 60 71 1 18 Gun 132 | . 60 71 1 . Cannon . | . . . . . Launcher 18 | . . . . 18 Special . | . . . . . Kinetic 88 | . 38 49 1 . Thermal . | . . . . . Explosive 18 | . . . . 18 Electromagnetic 44 | . 22 22 . . Robot Hit Streak 13 | . 13 8 . 8 Robot Miss Streak 4 | . 3 4 1 3 Penetration Max . | . . . . . Secondary Targets . | . . . . . Shots Hit Robots 95 | . 37 42 . 16 Core Hits 63 | . 22 20 . 21 Critical Kills . | . . . . . Critical Parts Destroyed 1 | . . . . 1 Critical Strikes 1 | . . . . 1 Smash 1 | . . . . 1 Melee Attacks 15 | . . . . 15 Impact 10 | . . . . 10 Slashing 5 | . . . . 5 Piercing . | . . . . . Sneak Attacks . | . . . . . Combat Hostiles . | . . . . . Follow-up Attacks 4 | . . . . 4 Damage Inflicted 2294 | . 432 446 . 1416 Guns 834 | . 388 446 . . Cannons . | . . . . . Explosions 1045 | . 42 . . 1003 Melee 412 | . . . . 412 Ramming 3 | . 2 . . 1 Kinetic 449 | . 190 259 . . Thermal 42 | . 42 . . . Explosive 1003 | . . . . 1003 Electromagnetic 385 | . 198 187 . . Impact 343 | . . . . 343 Slashing 69 | . . . . 69 Piercing . | . . . . . Highest Corruption 13 | . . 13 13 13 Average Corruption 6 | . . 12 13 4 Corruption Purged . | . . . . . Corruption Blocked . | . . . . . Effects 14 | . . 3 3 8 Message Errors 3 | . . . . 3 Matter Fused 1 | . . . . 1 Heat Flow Errors 2 | . . 1 1 . Energy Discharges 2 | . . 2 . . Data Loss (minor) 2 | . . . . 2 Data Loss (major) 1 | . . . . 1 Misfires 2 | . . . 1 1 Alerts 1 | . . . 1 . Overload Shots . | . . . . . Overflow Damage 119 | . . . . 119 Projectiles . | . . . . . Explosions 9 | . . . . 9 Melee 110 | . . . . 110 Knockbacks 4 | . . . . 4 Impact 4 | . . . . 4 Kinetic . | . . . . . Secondary . | . . . . . Self-Inflicted Damage 229 | . 21 . . 208 Shots 8 | . 1 . . 7 Rammed 3 | . 1 . . 2 Targets Rammed 3 | . 1 . . 2 Kicked . | . . . . . Crushed . | . . . . . Highest Temperature 259 | . 52 259 244 172 Average Temperature 45 | . 17 52 128 69 Received Heat Transfer 326 | . 159 66 . 101 Siege Activations . | . . . . . Martial Activations . | . . . . . Shielding Activations . | . . . . . Robots Disrupted . | . . . . . Combat Hostiles . | . . . . . Robots Corrupted 1 | . . . . 1 Combat Hostiles . | . . . . . Parts Fried 2 | . 1 . . 1 Impact Corruptions 4 | . . . . 4 Robots Melted . | . . . . . Combat Hostiles . | . . . . . Parts Melted . | . . . . . Heat Transferred 50 | . 50 . . . Parts Sabotaged . | . . . . . Parts Stolen . | . . . . . Parts Stripped . | . . . . . Power Chain Reactions 1 | . 1 . . . Alert | -11 -10 -9 -9 -7 ------- Run | Yrd Mat Mat Min Zio Maximum Alert Level . | . . . . . Low Security (%) 100 | 100 100 100 100 . Level 1 . | . . . . . Level 2 . | . . . . . Level 3 . | . . . . . Level 4 . | . . . . . Level 5 . | . . . . . High Security . | . . . . . Max Security . | . . . . . Peak Influence 82 | . 82 70 10 . Initial 26 | . . 26 10 . Average 31 | . 41 30 3 . Influence Increases 424 | . 202 222 . . Destroy 0b10 Robot/C 340 | . 160 180 . . Destroy 0b10 Robot/NC 30 | . 20 10 . . Destroy Leader 52 | . 20 32 . . Destroy Structure 2 | . 2 . . . Influence Decreases 424 | . 140 257 27 . Entered New Map 53 | . . 36 17 . Time Decay 305 | . 130 165 10 . Lost Part 66 | . 10 56 . . Squads Dispatched . | . . . . . Investigation . | . . . . . Extermination . | . . . . . Reinforcement . | . . . . . Assault . | . . . . . Garrison . | . . . . . Intercept . | . . . . . Searches Triggered . | . . . . . Construction Impeded . | . . . . . Haulers Reinforced . | . . . . . Active Scanning Responses . | . . . . . Cargo Convoy Interrupts . | . . . . . Stealth | -11 -10 -9 -9 -7 --------- Run | Yrd Mat Mat Min Zio Distress Signals . | . . . . . Communications Jammed . | . . . . . Distress Signals . | . . . . . Times Spotted 47 | . 14 12 8 13 Peak Tracking Total 11 | . 7 4 11 7 Tactical Retreats . | . . . . . Traps | -11 -10 -9 -9 -7 ------- Run | Yrd Mat Mat Min Zio Traps Triggered . | . . . . . Indirectly . | . . . . . Trap Hack Attempts . | . . . . . Triggered . | . . . . . Disarmed . | . . . . . Reprogrammed . | . . . . . Reused . | . . . . . Traps Extracted . | . . . . . Installed . | . . . . . Triggered . | . . . . . Machines | -11 -10 -9 -9 -7 ---------- Run | Yrd Mat Mat Min Zio Machines Disabled 2 | . . . . 2 Max in Single Turn 1 | . . . . 1 Machines Repaired . | . . . . . Machines Dismantled . | . . . . . Machines Sabotaged . | . . . . . Overloaded Fab Kills . | . . . . . Hacking | -11 -10 -9 -9 -7 --------- Run | Yrd Mat Mat Min Zio Machines Accessed 1 | . 1 . . . Terminals 1 | . 1 . . . Fabricators . | . . . . . Repair Stations . | . . . . . Recycling Units . | . . . . . Scanalyzers . | . . . . . Garrison Access . | . . . . . Total Hacks 1 | . 1 . . . Successful 1 | . 1 . . . Failed . | . . . . . Catastrophic . | . . . . . Database Lockouts . | . . . . . Manual . | . . . . . Terminals 1 | . 1 . . . Fabricators . | . . . . . Repair Stations . | . . . . . Recycling Units . | . . . . . Scanalyzers . | . . . . . Garrison Access . | . . . . . Terminal Hacks 1 | . 1 . . . Alert Level 1 | . 1 . . . Fabricator Hacks . | . . . . . Repair Station Hacks . | . . . . . Recycling Unit Hacks . | . . . . . Scanalyzer . | . . . . . Garrison Access Hacks . | . . . . . Unauthorized Hacks . | . . . . . Terminals . | . . . . . Fabricators . | . . . . . Repair Stations . | . . . . . Recycling Units . | . . . . . Scanalyzers . | . . . . . Garrison Access . | . . . . . Data Cores Recovered . | . . . . . Used . | . . . . . Hacking Detections . | . . . . . Full Trace Events . | . . . . . Feedback Events . | . . . . . Feedback Blocked . | . . . . . Robot Schematics Acquired . | . . . . . Robots Built . | . . . . . Authchips . | . . . . . Time . | . . . . . Total Robot Build Rating . | . . . . . Part Schematics Acquired . | . . . . . Parts Built . | . . . . . Authchips . | . . . . . Time . | . . . . . Total Part Build Rating . | . . . . . Parts Repaired . | . . . . . Time . | . . . . . Parts Recycled . | . . . . . Recycled Matter . | . . . . . Retrieved Matter . | . . . . . Retrieved Components . | . . . . . Parts Scanalyzed . | . . . . . Part Schematics Acquired . | . . . . . Parts Damaged . | . . . . . Bothacking | -11 -10 -9 -9 -7 ------------ Run | Yrd Mat Mat Min Zio Used RIF Installer . | . . . . . Robots Hacked . | . . . . . Non-combat . | . . . . . Combat . | . . . . . Robot Hacks Applied . | . . . . . Relay Couplers Released . | . . . . . Fabnet Peak Effective % . | . . . . . Robots Rewired . | . . . . . Allies Hacked . | . . . . . Hacks Repelled . | . . . . . Allies | -11 -10 -9 -9 -7 -------- Run | Yrd Mat Mat Min Zio Total Allies . | . . . . . Largest Group . | . . . . . Highest-Rated Group . | . . . . . Highest-Rated Ally . | . . . . . Total Orders . | . . . . . Ally Attacks . | . . . . . Total Damage . | . . . . . Kills . | . . . . . Allies Corrupted . | . . . . . Allies Melted . | . . . . . Intel | -11 -10 -9 -9 -7 ------- Run | Yrd Mat Mat Min Zio Active Infowar (turns) 207 | . . 207 . . Optics 207 | . . 207 . . Robot Analysis Total . | . . . . . Derelict Logs Recovered . | . . . . . Drone Launches . | . . . . . Drone Recoveries . | . . . . . Exploration | -11 -10 -9 -9 -7 ------------- Run | Yrd Mat Mat Min Zio Turns Passed 1792 | 53 362 400 51 926 Spaces Moved 1233 | 48 263 202 45 675 Core 24 | 16 8 . . . Treads 57 | . . . . 57 Legs . | . . . . . Wheels 1152 | 32 255 202 45 618 Hover . | . . . . . Flight . | . . . . . Fastest Speed 50 | 50 80 80 110 110 Average Speed 110 | 83 92 97 110 122 Slowest Speed 320 | 100 250 110 110 320 Overloaded Moves . | . . . . . Propulsion Burnouts . | . . . . . Robots Hopped . | . . . . . Potential Cave-ins . | . . . . . Cave-ins Triggered . | . . . . . Exploration Rate (%) 31 | 4 45 14 21 75 Regions Visited 4 Branch Regions 2 Pre-discovered Areas . | . . . . . Known Exits Taken . | . . . . . Unknown Exits Taken 4 | 1 1 1 1 . Scrap Searched 4 | . . . . 4 Spaces Dug . | . . . . . Terrain Destroyed 27 | . 2 . . 25 Melee . | . . . . . Projectile . | . . . . . AOE 27 | . 2 . . 25 Terrain Rammed . | . . . . . Walls Destroyed . | . . . . . Machines Disabled . | . . . . . Actions | -11 -10 -9 -9 -7 --------- Run | Yrd Mat Mat Min Zio Total 1542 | 60 330 356 46 750 Wait 110 | . 5 104 . 1 Move 1229 | 47 262 201 44 675 Hop . | . . . . . Pick Up 50 | 9 10 13 1 17 Fast Attach 7 | . 1 . . 6 Attach 21 | 4 3 8 1 5 Detach 1 | . . . . 1 Swap 11 | . 4 2 . 5 Drop 28 | . 6 1 . 21 Fire 71 | . 38 27 . 6 Melee 11 | . . . . 11 Ram 3 | . 1 . . 2 Kick . | . . . . . Crush . | . . . . . Escape Stasis . | . . . . . Rewire . | . . . . . Trap . | . . . . . Miscellaneous . | . . . . . Route ------- -11/Scrapyard -10/Materials (discovered 3 exits: [*Mat] / [*Min x2]) -9/Materials -9/Mines -7/Zion History --------- Turn | Location | Event 34 | -11/Scrapyard | Discovered new exit (range 15) 54 | -11/Scrapyard | Entered Materials 237 | -10/Materials | Discovered new exit (range 15) 264 | -10/Materials | Discovered new exit (range 6) 301 | -10/Materials | Build established: Mutant 399 | -10/Materials | Discovered new exit (range 16) 416 | -10/Materials | Entered another Materials area 416 | -9/Materials | Evolved 2 slots: Utility x1, Weapon x1 666 | -9/Materials | Discovered new exit (range 17) 745 | -9/Materials | System corruption reached 10% 783 | -9/Materials | Lost 4 parts (1p1u2w) 816 | -9/Materials | Entered Mines 817 | -9/Mines | Assembled infested the area 822 | -9/Mines | Assisted by a Guerilla fighting off Assembled 834 | -9/Mines | Found a Scrap Suit stashed away for nefarious purposes 836 | -9/Mines | Found Scrap Suit 865 | -9/Mines | A Derelict revealed a hidden shortcut to a safe place 867 | -9/Mines | Entered Zion 916 | -7/Zion | System corruption cleaned by Quarantine Array 1045 | -7/Zion | Build established: Scavenger-Mutant 1463 | -7/Zion | Found Prototype Processor 1464 | -7/Zion | Identified Exp. Signal Interpreter 1470 | -7/Zion | Found Prototype Processor 1470 | -7/Zion | Identified Exp. Armor Integrity Analyzer 1477 | -7/Zion | Found Exp. Armor Integrity Analyzer 1546 | -7/Zion | Attacked by Zionites 1556 | -7/Zion | Destroyed Imprinter 1605 | -7/Zion | Core integrity fell below 50% 1681 | -7/Zion | Lost 3 parts (1p1n1w) 1786 | -7/Zion | Core integrity fell below 20% 1793 | -7/Zion | Destroyed by VR-X8E(z) with Makeshift Hammer Last Messages --------------- 01787_ 6O-JNZ(z) heat damages core (-3). 01787_ UH-18X(z) pulls a Mak. Laser out of the Twisted Machinery. 01787_ 6O-JNZ(z) overheating. 01787_ WK-DL5(z) pulls a Mak. Sword out of the Twisted Machinery. 01788_ 6O-JNZ(z) heat short circuits Mak. Leg. 01788_ 6O-JNZ(z) overheating. 01790_ WK-DL5(z) overheating. 01790_ 6O-JNZ(z) overheating. 01791_ WK-DL5(z) overheating. 01791_ 6O-JNZ(z) overheating. 01792_ System corrupted: Substantial component data lost. 01792_ 6O-JNZ(z) heat damages core (-4). 01792_ WK-DL5(z) overheating. 01793_ Critical hit (Burn: +37). 01793_ WK-DL5(z) overheating. 01793_ Exp. Signal Interpreter destroyed. 01793_ System corrupted by crushing effect (+4). Map ----- +----------------------------------------------------+ | ??????????????????????????? "??#"""" | | ?????????????????????????? ""#?#""" | | ?????????????????????????? """"#"" """ | | ????????????????????????? """" """"" | | ???????????????????????"" "" """""" ""#"" | | ?????????????????????###"" """"" """""" """"" | | ?????????????????#####""""""""""" ""#"" | | ????????????????##""""""""""""""" """" | | ????????????????#""""""" """ """" "" | | ???????????????"#" "" """"" "" | | ????????###?####"" "" """"" "" | | ???????##!###" """ "" """"" | | ???????#! #"# """ | | ???????##*!!! "#" | | ???????#"![ #" #" """ | | ???????#!!!" # "" """"" " """"""""" | | ???????##!!##" " """"" " """"" | | ????????####### "##" "" """""" | | ??????????????## """"" """ % """""" | | ???????????????# " ""#"" "" * "#"#"" | | ???????????????# "" """"""" "" ""####" | | ???????????????## ##""""#""" ""#???? | | ????????????????#####""""""" c ""#???? | | ??????????????????##""" "" "" " ""#???? | | ????##??###########""" "" z"""" ""#???? | | ????""###""""# # #""" @ " """""""#????? | | #####"""""""" ##"""= z #""##"#"????? | | """ #"#" % "z "" """??##?????? | | """ #"#" = "" ""#?????????? | | #"#" % " """ """?????????? | | ##"" =" "" "#"" ""??????????? | | """"" z""""""" ""??????????? | | # # # #"""" """#""" ""??????????? | | "# ##"##""" """"""" ""??????????? | | ### #######""#"" """"""" ""??????????? | | # ""#??#"""""" """" #"??????????? | | "" # "#?##"" = ! """" ""??????????? | | "" #" # ###" "" / ! """ ""??????????? | | ##### ## #?#" """ " #"??????????? | | ##### # ###?#" """" " ""??????????? | | #"""#### # ####" " "" "" ""??????????? | | " # ### " """ ""?????????? | | " # ##"# ## ## """"""" "?????????? | | " ####"" # # """""" ???????????? | | # #### #??#"" """ ""#"" """?????????? | | # #??######??#"" """ ""#" ""##?###??### | | # #####??????##" """ """ """###"####"# | | " """""???????#" # # """##""""#""" | | " "######?????## ## ## " "" """"""""""""" | | " " " #??????# "" """ | +----------------------------------------------------+ Best States ------------- Heat Dissipation 38 Energy Generation 14 Energy Capacity 250 Matter Stores 300 Matter Capacity 300 Sight Range 18 Terrain Scan Density 10 Armor Coverage 100 Evasion (%) 50 Armor Integrity Analysis 50 Recoil Reduction 1 Item Schematics ----------------- None Robot Schematics ------------------ None Fabricated ------------ Nothing Repaired ---------- Nothing Alien Tech Used ----------------- None Achievements -------------- None Challenges ------------ None Game ------ Seed LobotomyTransmissionSuit Manual? 0 Play Time 00:18:20 Cumulative 54.0 hours Start 2025.07.28 @ 14:41:34 End 2025.07.28 @ 14:59:08 Sessions 1 Manual Loads 0 Difficulty Rogue Special Mode None Game No. 104 Rogue 104 Adventurer 0 Explorer 0 Win Type - Total 0 Types 0/0/0/0/0/0/0/0/0/0 Lore% 9 Gallery% 33 Achievement% 26 Wizard Run 0 Options --------- Layout 1 ASCII 0 Keyboard 0 Movement Mouse Keybinds 0 Fullscreen 2 Font 32/SmallcapsGlow Map View 50x35 Zoom Use 0% Tactical HUD 1 Map Filters NONE Filters NONE Steam 1 RUN: 75ea285a-e704-4716-bf24-19c04a449559